[Event "Titled Tuesday Blitz February 07 Late 2023"]
[White "Ferreira, Vitor Hugo Vieira"]
[Black "Timmermans, Mark"]
[WhiteFideId "2119765"]
[BlackFideId "1026399"]
[WhiteElo "2128"]
[BlackElo "2392"]
[Result "0-1"]
[Round "02"]
[TimeControl "180+2"]
[Date "2023.02.07"]
[WhiteClock "0:00:12"]
[BlackClock "0:00:21"]

1. Nf3 {[%clk 0:03:00]}  Nf6 {[%clk 0:02:59]} 2. g3 {[%clk 0:03:00]}  e6 {[%clk 0:02:59]} 3. Bg2 {[%clk 0:03:00]}  d5 {[%clk 0:03:00]} 4. O-O {[%clk 0:03:00]}  Be7 {[%clk 0:03:01]} 5. c4 {[%clk 0:03:01]}  O-O {[%clk 0:03:02]} 6. cxd5 {[%clk 0:03:01]}  exd5 {[%clk 0:03:01]} 7. d3 {[%clk 0:03:02]}  c6 {[%clk 0:02:58]} 8. Nc3 {[%clk 0:03:02]}  Bf5 {[%clk 0:02:58]} 9. Nd4 {[%clk 0:03:01]}  Bg6 {[%clk 0:02:57]} 10. e4 {[%clk 0:03:01]}  dxe4 {[%clk 0:02:48]} 11. dxe4 {[%clk 0:03:01]}  Nbd7 {[%clk 0:02:48]} 12. Bf4 {[%clk 0:02:58]}  Nc5 {[%clk 0:02:46]} 13. Re1 {[%clk 0:02:53]}  Nfd7 {[%clk 0:02:45]} 14. Qe2 {[%clk 0:02:47]}  Re8 {[%clk 0:02:41]} 15. Rad1 {[%clk 0:02:45]}  a5 {[%clk 0:02:32]} 16. e5 {[%clk 0:02:09]}  Bf8 {[%clk 0:02:13]} 17. Qc4 {[%clk 0:02:07]}  Bd3 {[%clk 0:01:59]} 18. Rxd3 {[%clk 0:01:46]}  Nb6 {[%clk 0:01:44]} 19. Nxc6 {[%clk 0:01:18]}  Qxd3 {[%clk 0:01:39]} 20. Qxd3 {[%clk 0:01:10]}  Nxd3 {[%clk 0:01:40]} 21. Rd1 {[%clk 0:01:10]}  Nxf4 {[%clk 0:01:40]} 22. gxf4 {[%clk 0:01:09]}  bxc6 {[%clk 0:01:40]} 23. Bxc6 {[%clk 0:01:09]}  Rec8 {[%clk 0:01:31]} 24. Bxa8 {[%clk 0:01:09]}  Rxa8 {[%clk 0:01:32]} 25. f5 {[%clk 0:01:02]}  Nc4 {[%clk 0:01:32]} 26. e6 {[%clk 0:01:00]}  fxe6 {[%clk 0:01:32]} 27. fxe6 {[%clk 0:01:00]}  Nxb2 {[%clk 0:01:26]} 28. Rd7 {[%clk 0:00:59]}  Bb4 {[%clk 0:01:23]} 29. Nd5 {[%clk 0:00:55]}  Nc4 {[%clk 0:01:18]} 30. Nc7 {[%clk 0:00:45]}  Rc8 {[%clk 0:01:09]} 31. e7 {[%clk 0:00:43]}  Bxe7 {[%clk 0:01:00]} 32. Rxe7 {[%clk 0:00:42]}  Kf8 {[%clk 0:01:01]} 33. Rd7 {[%clk 0:00:40]}  Ne5 {[%clk 0:00:54]} 34. Ne6+ {[%clk 0:00:39]}  Ke8 {[%clk 0:00:54]} 35. Rxg7 {[%clk 0:00:38]}  Rc1+ {[%clk 0:00:33]} 36. Kg2 {[%clk 0:00:38]}  Rc2 {[%clk 0:00:34]} 37. Rg5 {[%clk 0:00:28]}  Nd3 {[%clk 0:00:26]} 38. Rxa5 {[%clk 0:00:28]}  Rxf2+ {[%clk 0:00:26]} 39. Kg3 {[%clk 0:00:27]}  Re2 {[%clk 0:00:26]} 40. Nd4 {[%clk 0:00:24]}  Re3+ {[%clk 0:00:25]} 41. Kg4 {[%clk 0:00:22]}  Re4+ {[%clk 0:00:25]} 42. Kf5 {[%clk 0:00:22]}  Rxd4 {[%clk 0:00:25]} 43. Ke6 {[%clk 0:00:22]}  Re4+ {[%clk 0:00:20]} 44. Kf5 {[%clk 0:00:17]}  Rh4 {[%clk 0:00:20]} 45. Ke6 {[%clk 0:00:14]}  Rh6+ {[%clk 0:00:19]} 46. Kf5 {[%clk 0:00:11]}  Rh5+ {[%clk 0:00:20]} 47. Ke4 {[%clk 0:00:12]}  Rxa5 {[%clk 0:00:21]} 48. Kxd3 {[%clk 0:00:12]}  Rxa2 {[%clk 0:00:21]} 0-1


[Site "https://www.chess.com"]

[Event "Titled Tuesday Blitz February 07 Late 2023"]
[White "Schroeder, Jan-Christian"]
[Black "Mohammed, Zozek Salah Mohammed"]
[WhiteFideId "24662259"]
[BlackFideId "4803361"]
[WhiteElo "2553"]
[BlackElo "2210"]
[Result "0-1"]
[Round "02"]
[TimeControl "180+2"]
[Date "2023.02.07"]
[WhiteClock "0:00:01"]
[BlackClock "0:00:05"]

1. d4 {[%clk 0:03:00]}  d5 {[%clk 0:02:56]} 2. c4 {[%clk 0:03:00]}  c6 {[%clk 0:02:53]} 3. Nf3 {[%clk 0:02:57]}  Nf6 {[%clk 0:02:53]} 4. e3 {[%clk 0:02:57]}  e6 {[%clk 0:02:52]} 5. b3 {[%clk 0:02:54]}  Nbd7 {[%clk 0:02:52]} 6. Bd3 {[%clk 0:02:53]}  Bd6 {[%clk 0:02:52]} 7. O-O {[%clk 0:02:53]}  O-O {[%clk 0:02:52]} 8. Bb2 {[%clk 0:02:53]}  b6 {[%clk 0:02:52]} 9. Nc3 {[%clk 0:02:52]}  Bb7 {[%clk 0:02:52]} 10. Qe2 {[%clk 0:02:53]}  Qe7 {[%clk 0:02:50]} 11. Rac1 {[%clk 0:02:52]}  e5 {[%clk 0:02:49]} 12. cxd5 {[%clk 0:02:43]}  cxd5 {[%clk 0:02:18]} 13. dxe5 {[%clk 0:02:42]}  Nxe5 {[%clk 0:02:18]} 14. Nb5 {[%clk 0:02:43]}  Nxf3+ {[%clk 0:02:15]} 15. Qxf3 {[%clk 0:02:42]}  d4 {[%clk 0:02:09]} 16. Qh3 {[%clk 0:02:28]}  Ba6 {[%clk 0:01:54]} 17. Bxd4 {[%clk 0:02:20]}  Be5 {[%clk 0:01:48]} 18. Rc7 {[%clk 0:01:38]}  Qd8 {[%clk 0:00:51]} 19. Bxe5 {[%clk 0:01:11]}  Qxd3 {[%clk 0:00:45]} 20. a4 {[%clk 0:01:11]}  Bxb5 {[%clk 0:00:40]} 21. axb5 {[%clk 0:01:11]}  Qxb5 {[%clk 0:00:39]} 22. Bxf6 {[%clk 0:00:48]}  gxf6 {[%clk 0:00:40]} 23. Qf3 {[%clk 0:00:46]}  Qe5 {[%clk 0:00:36]} 24. Rfc1 {[%clk 0:00:39]}  a5 {[%clk 0:00:32]} 25. R7c4 {[%clk 0:00:35]}  Rad8 {[%clk 0:00:29]} 26. Rc6 {[%clk 0:00:24]}  b5 {[%clk 0:00:24]} 27. Rxf6 {[%clk 0:00:23]}  a4 {[%clk 0:00:20]} 28. bxa4 {[%clk 0:00:21]}  bxa4 {[%clk 0:00:21]} 29. Ra6 {[%clk 0:00:21]}  Qb2 {[%clk 0:00:18]} 30. Rf1 {[%clk 0:00:20]}  a3 {[%clk 0:00:17]} 31. h3 {[%clk 0:00:18]}  a2 {[%clk 0:00:17]} 32. Qg4+ {[%clk 0:00:18]}  Kh8 {[%clk 0:00:16]} 33. Qa4 {[%clk 0:00:19]}  Rd2 {[%clk 0:00:15]} 34. g3 {[%clk 0:00:16]}  Rg8 {[%clk 0:00:15]} 35. Kg2 {[%clk 0:00:16]}  Qb7+ {[%clk 0:00:09]} 36. e4 {[%clk 0:00:12]}  Qb2 {[%clk 0:00:08]} 37. Ra7 {[%clk 0:00:10]}  Qc3 {[%clk 0:00:08]} 38. Kh1 {[%clk 0:00:02]}  Qf3+ {[%clk 0:00:06]} 39. Kg1 {[%clk 0:00:01]}  Rxg3+ {[%clk 0:00:05]} 0-1


[Site "https://www.chess.com"]

[Event "Titled Tuesday Blitz February 07 Late 2023"]
[White "Makridis, Dimitrios"]
[Black "Kielinkei"]
[WhiteFideId "25864475"]
[WhiteElo "2356"]
[BlackElo "2394"]
[Result "1-0"]
[Round "02"]
[TimeControl "180+2"]
[Date "2023.02.07"]
[WhiteClock "0:00:40"]
[BlackClock "0:00:03"]

1. c4 {[%clk 0:03:00]}  Nf6 {[%clk 0:02:58]} 2. Nc3 {[%clk 0:02:46]}  e6 {[%clk 0:02:58]} 3. e4 {[%clk 0:02:46]}  d5 {[%clk 0:02:57]} 4. cxd5 {[%clk 0:02:18]}  exd5 {[%clk 0:02:58]} 5. e5 {[%clk 0:02:19]}  d4 {[%clk 0:02:47]} 6. exf6 {[%clk 0:02:18]}  dxc3 {[%clk 0:02:48]} 7. bxc3 {[%clk 0:02:19]}  Qxf6 {[%clk 0:02:47]} 8. Nf3 {[%clk 0:02:19]}  Bd6 {[%clk 0:02:42]} 9. d4 {[%clk 0:02:18]}  O-O {[%clk 0:02:40]} 10. Bd3 {[%clk 0:02:17]}  Bf5 {[%clk 0:02:38]} 11. O-O {[%clk 0:02:16]}  h6 {[%clk 0:02:28]} 12. Rb1 {[%clk 0:02:15]}  b6 {[%clk 0:02:25]} 13. Re1 {[%clk 0:02:13]}  Nd7 {[%clk 0:02:25]} 14. a4 {[%clk 0:02:07]}  Rfe8 {[%clk 0:02:23]} 15. Be3 {[%clk 0:02:06]}  c5 {[%clk 0:02:12]} 16. Bxf5 {[%clk 0:01:44]}  Qxf5 {[%clk 0:02:12]} 17. h3 {[%clk 0:01:44]}  Nf6 {[%clk 0:02:08]} 18. a5 {[%clk 0:01:42]}  Nd5 {[%clk 0:01:56]} 19. Qb3 {[%clk 0:01:38]}  Nxe3 {[%clk 0:01:55]} 20. fxe3 {[%clk 0:01:37]}  Rab8 {[%clk 0:01:48]} 21. axb6 {[%clk 0:01:35]}  axb6 {[%clk 0:01:45]} 22. Qb5 {[%clk 0:01:30]}  Bg3 {[%clk 0:01:36]} 23. Re2 {[%clk 0:01:26]}  h5 {[%clk 0:00:58]} 24. Rf1 {[%clk 0:01:20]}  Qg6 {[%clk 0:00:47]} 25. Qb3 {[%clk 0:01:01]}  h4 {[%clk 0:00:44]} 26. e4 {[%clk 0:00:57]}  Rxe4 {[%clk 0:00:36]} 27. Rxe4 {[%clk 0:00:56]}  Qxe4 {[%clk 0:00:37]} 28. Qxf7+ {[%clk 0:00:57]}  Kxf7 {[%clk 0:00:38]} 29. Ng5+ {[%clk 0:00:57]}  Ke7 {[%clk 0:00:37]} 30. Nxe4 {[%clk 0:00:58]}  cxd4 {[%clk 0:00:36]} 31. cxd4 {[%clk 0:00:59]}  Rd8 {[%clk 0:00:27]} 32. Rd1 {[%clk 0:00:56]}  Bf4 {[%clk 0:00:21]} 33. Kf2 {[%clk 0:00:53]}  b5 {[%clk 0:00:20]} 34. Kf3 {[%clk 0:00:54]}  g5 {[%clk 0:00:20]} 35. Kg4 {[%clk 0:00:54]}  Rd5 {[%clk 0:00:12]} 36. Nc3 {[%clk 0:00:52]}  Rd8 {[%clk 0:00:11]} 37. Nxb5 {[%clk 0:00:51]}  Kf6 {[%clk 0:00:10]} 38. Ra1 {[%clk 0:00:47]}  Rb8 {[%clk 0:00:10]} 39. Ra6+ {[%clk 0:00:46]}  Kg7 {[%clk 0:00:10]} 40. Nd6 {[%clk 0:00:46]}  Rb3 {[%clk 0:00:09]} 41. Ne4 {[%clk 0:00:46]}  Rd3 {[%clk 0:00:06]} 42. Nxg5 {[%clk 0:00:46]}  Bxg5 {[%clk 0:00:04]} 43. Kxg5 {[%clk 0:00:47]}  Rxd4 {[%clk 0:00:05]} 44. Ra7+ {[%clk 0:00:47]}  Kg8 {[%clk 0:00:04]} 45. Kh5 {[%clk 0:00:46]}  Kf8 {[%clk 0:00:03]} 46. Ra5 {[%clk 0:00:44]}  Rd2 {[%clk 0:00:02]} 47. Rg5 {[%clk 0:00:45]}  Rd4 {[%clk 0:00:01]} 48. Rg4 {[%clk 0:00:45]}  Rd5+ {[%clk 0:00:01]} 49. Kxh4 {[%clk 0:00:45]}  Kf7 {[%clk 0:00:02]} 50. Rg5 {[%clk 0:00:46]}  Rd4+ {[%clk 0:00:02]} 51. g4 {[%clk 0:00:46]}  Rd3 {[%clk 0:00:02]} 52. Rf5+ {[%clk 0:00:47]}  Kg6 {[%clk 0:00:03]} 53. Ra5 {[%clk 0:00:48]}  Rc3 {[%clk 0:00:03]} 54. Ra6+ {[%clk 0:00:48]}  Kg7 {[%clk 0:00:03]} 55. g5 {[%clk 0:00:49]}  Rb3 {[%clk 0:00:03]} 56. Kg4 {[%clk 0:00:49]}  Rb4+ {[%clk 0:00:03]} 57. Kh5 {[%clk 0:00:50]}  Rb3 {[%clk 0:00:03]} 58. h4 {[%clk 0:00:50]}  Rb7 {[%clk 0:00:02]} 59. Rg6+ {[%clk 0:00:50]}  Kh7 {[%clk 0:00:02]} 60. Re6 {[%clk 0:00:49]}  Kg7 {[%clk 0:00:03]} 61. Kg4 {[%clk 0:00:49]}  Rb4+ {[%clk 0:00:02]} 62. Kh5 {[%clk 0:00:48]}  Rb7 {[%clk 0:00:03]} 63. Rf6 {[%clk 0:00:37]}  Ra7 {[%clk 0:00:02]} 64. Kg4 {[%clk 0:00:37]}  Ra4+ {[%clk 0:00:02]} 65. Rf4 {[%clk 0:00:38]}  Ra1 {[%clk 0:00:01]} 66. h5 {[%clk 0:00:38]}  Rg1+ {[%clk 0:00:02]} 67. Kf5 {[%clk 0:00:39]}  Ra1 {[%clk 0:00:03]} 68. Re4 {[%clk 0:00:39]}  Ra5+ {[%clk 0:00:02]} 69. Re5 {[%clk 0:00:39]}  Ra7 {[%clk 0:00:02]} 70. h6+ {[%clk 0:00:39]}  Kh7 {[%clk 0:00:03]} 71. Kg4 {[%clk 0:00:40]}  Ra1 {[%clk 0:00:02]} 72. Re7+ {[%clk 0:00:40]}  Kg8 {[%clk 0:00:02]} 73. g6 {[%clk 0:00:40]}  Ra5 {[%clk 0:00:03]} 74. Re8# {[%clk 0:00:40]} 1-0


[Site "https://www.chess.com"]

[Event "Titled Tuesday Blitz February 07 Late 2023"]
[White "Rosenberg, Evan S"]
[Black "Trost, Edvin"]
[WhiteFideId "2019299"]
[BlackFideId "1729519"]
[WhiteElo "1956"]
[BlackElo "2399"]
[Result "0-1"]
[Round "02"]
[TimeControl "180+2"]
[Date "2023.02.07"]
[WhiteClock "0:00:09"]
[BlackClock "0:02:08"]

1. d4 {[%clk 0:03:00]}  c5 {[%clk 0:02:55]} 2. d5 {[%clk 0:03:00]}  d6 {[%clk 0:02:48]} 3. e4 {[%clk 0:02:53]}  Na6 {[%clk 0:02:48]} 4. Nc3 {[%clk 0:02:49]}  Nc7 {[%clk 0:02:48]} 5. h3 {[%clk 0:02:40]}  g6 {[%clk 0:02:45]} 6. Nf3 {[%clk 0:02:36]}  Bg7 {[%clk 0:02:45]} 7. Nd2 {[%clk 0:02:36]}  Nf6 {[%clk 0:02:45]} 8. a4 {[%clk 0:02:35]}  O-O {[%clk 0:02:45]} 9. Nc4 {[%clk 0:02:35]}  Rb8 {[%clk 0:02:43]} 10. Be2 {[%clk 0:02:24]}  b6 {[%clk 0:02:41]} 11. O-O {[%clk 0:02:23]}  a6 {[%clk 0:02:41]} 12. Bf4 {[%clk 0:02:18]}  b5 {[%clk 0:02:41]} 13. axb5 {[%clk 0:02:19]}  axb5 {[%clk 0:02:41]} 14. Na5 {[%clk 0:02:19]}  Bd7 {[%clk 0:02:42]} 15. e5 {[%clk 0:02:08]}  dxe5 {[%clk 0:02:43]} 16. Bxe5 {[%clk 0:02:08]}  b4 {[%clk 0:02:44]} 17. Bxf6 {[%clk 0:02:06]}  Bxf6 {[%clk 0:02:43]} 18. Ne4 {[%clk 0:02:07]}  Bxb2 {[%clk 0:02:43]} 19. Rb1 {[%clk 0:01:58]}  Bd4 {[%clk 0:02:43]} 20. c3 {[%clk 0:01:22]}  bxc3 {[%clk 0:02:39]} 21. Rxb8 {[%clk 0:01:22]}  Qxb8 {[%clk 0:02:40]} 22. Nc6 {[%clk 0:00:56]}  Bxc6 {[%clk 0:02:40]} 23. dxc6 {[%clk 0:00:57]}  Qb6 {[%clk 0:02:40]} 24. Qa4 {[%clk 0:00:52]}  Ra8 {[%clk 0:02:35]} 25. Qc4 {[%clk 0:00:53]}  Qxc6 {[%clk 0:02:32]} 26. Nxc3 {[%clk 0:00:52]}  Qe6 {[%clk 0:02:29]} 27. Qxe6 {[%clk 0:00:34]}  Nxe6 {[%clk 0:02:30]} 28. Nd5 {[%clk 0:00:35]}  Kf8 {[%clk 0:02:25]} 29. Bg4 {[%clk 0:00:30]}  Ng7 {[%clk 0:02:17]} 30. Re1 {[%clk 0:00:16]}  e6 {[%clk 0:02:13]} 31. Ne3 {[%clk 0:00:14]}  Bxe3 {[%clk 0:02:11]} 32. Rxe3 {[%clk 0:00:14]}  Rc8 {[%clk 0:02:11]} 33. Rc3 {[%clk 0:00:14]}  Rc7 {[%clk 0:02:11]} 34. f4 {[%clk 0:00:13]}  Ne8 {[%clk 0:02:07]} 35. Kf2 {[%clk 0:00:12]}  Nf6 {[%clk 0:02:04]} 36. Bf3 {[%clk 0:00:12]}  Nd5 {[%clk 0:02:01]} 37. Rc4 {[%clk 0:00:12]}  Nb6 {[%clk 0:02:00]} 38. Rc3 {[%clk 0:00:11]}  c4 {[%clk 0:02:00]} 39. Ke3 {[%clk 0:00:09]}  Na4 {[%clk 0:01:58]} 40. Rc2 {[%clk 0:00:10]}  c3 {[%clk 0:01:57]} 41. Kd4 {[%clk 0:00:09]}  Ke7 {[%clk 0:01:57]} 42. g4 {[%clk 0:00:08]}  Kd6 {[%clk 0:01:58]} 43. h4 {[%clk 0:00:07]}  f6 {[%clk 0:01:56]} 44. h5 {[%clk 0:00:07]}  e5+ {[%clk 0:01:57]} 45. fxe5+ {[%clk 0:00:07]}  fxe5+ {[%clk 0:01:58]} 46. Kd3 {[%clk 0:00:07]}  g5 {[%clk 0:01:57]} 47. Be4 {[%clk 0:00:07]}  Nc5+ {[%clk 0:01:55]} 48. Ke3 {[%clk 0:00:05]}  Nxe4 {[%clk 0:01:55]} 49. Kxe4 {[%clk 0:00:06]}  Ke6 {[%clk 0:01:56]} 50. Kd3 {[%clk 0:00:06]}  Kd5 {[%clk 0:01:56]} 51. Rxc3 {[%clk 0:00:04]}  Rxc3+ {[%clk 0:01:57]} 52. Kxc3 {[%clk 0:00:05]}  Ke4 {[%clk 0:01:57]} 53. Kc4 {[%clk 0:00:05]}  Kf4 {[%clk 0:01:58]} 54. Kd5 {[%clk 0:00:05]}  e4 {[%clk 0:01:58]} 55. Kd4 {[%clk 0:00:05]}  e3 {[%clk 0:01:59]} 56. Kd3 {[%clk 0:00:06]}  Kxg4 {[%clk 0:01:59]} 57. Kxe3 {[%clk 0:00:06]}  Kxh5 {[%clk 0:02:00]} 58. Kf3 {[%clk 0:00:07]}  Kg6 {[%clk 0:02:01]} 59. Kg4 {[%clk 0:00:07]}  h5+ {[%clk 0:02:02]} 60. Kg3 {[%clk 0:00:08]}  h4+ {[%clk 0:02:03]} 61. Kg4 {[%clk 0:00:08]}  Kh6 {[%clk 0:02:03]} 62. Kh3 {[%clk 0:00:07]}  Kh5 {[%clk 0:02:04]} 63. Kh2 {[%clk 0:00:07]}  g4 {[%clk 0:02:05]} 64. Kg2 {[%clk 0:00:08]}  h3+ {[%clk 0:02:06]} 65. Kg3 {[%clk 0:00:08]}  Kg5 {[%clk 0:02:07]} 66. Kf2 {[%clk 0:00:09]}  Kh4 {[%clk 0:02:08]} 67. Kf1 {[%clk 0:00:08]}  g3 {[%clk 0:02:06]} 68. Kg1 {[%clk 0:00:09]}  h2+ {[%clk 0:02:05]} 69. Kg2 {[%clk 0:00:09]}  Kg4 {[%clk 0:02:06]} 70. Kh1 {[%clk 0:00:10]}  Kf4 {[%clk 0:02:05]} 71. Kg2 {[%clk 0:00:10]}  h1=Q+ {[%clk 0:02:03]} 72. Kxh1 {[%clk 0:00:08]}  Kf3 {[%clk 0:02:04]} 73. Kg1 {[%clk 0:00:08]}  g2 {[%clk 0:02:05]} 74. Kh2 {[%clk 0:00:08]}  Kf2 {[%clk 0:02:06]} 75. Kh3 {[%clk 0:00:08]}  g1=Q {[%clk 0:02:07]} 76. Kh4 {[%clk 0:00:08]}  Qg6 {[%clk 0:02:07]} 77. Kh3 {[%clk 0:00:09]}  Qg3# {[%clk 0:02:08]} 0-1


[Site "https://www.chess.com"]

[Event "Titled Tuesday Blitz February 07 Late 2023"]
[White "Salimova, Nurgyul"]
[Black "Semenenko, Dmytry"]
[WhiteFideId "2915138"]
[BlackFideId "14118645"]
[WhiteElo "2391"]
[BlackElo "2113"]
[Result "1-0"]
[Round "02"]
[TimeControl "180+2"]
[Date "2023.02.07"]
[WhiteClock "0:00:19"]
[BlackClock "0:00:37"]

1. d4 {[%clk 0:03:00]}  d5 {[%clk 0:02:59]} 2. Nf3 {[%clk 0:03:00]}  Nf6 {[%clk 0:02:59]} 3. c4 {[%clk 0:02:58]}  c6 {[%clk 0:02:59]} 4. Nc3 {[%clk 0:02:56]}  dxc4 {[%clk 0:03:00]} 5. e4 {[%clk 0:02:56]}  b5 {[%clk 0:02:59]} 6. e5 {[%clk 0:02:57]}  Nd5 {[%clk 0:02:59]} 7. a4 {[%clk 0:02:57]}  b4 {[%clk 0:02:55]} 8. Ne4 {[%clk 0:02:51]}  e6 {[%clk 0:02:51]} 9. Bxc4 {[%clk 0:02:50]}  Be7 {[%clk 0:02:51]} 10. O-O {[%clk 0:02:47]}  O-O {[%clk 0:02:51]} 11. Bg5 {[%clk 0:02:46]}  Ba6 {[%clk 0:02:43]} 12. Qc2 {[%clk 0:02:39]}  Bxc4 {[%clk 0:02:36]} 13. Qxc4 {[%clk 0:02:39]}  Bxg5 {[%clk 0:02:33]} 14. Nfxg5 {[%clk 0:02:39]}  Nd7 {[%clk 0:02:27]} 15. h4 {[%clk 0:02:31]}  h6 {[%clk 0:02:20]} 16. Nf3 {[%clk 0:02:29]}  N7b6 {[%clk 0:02:20]} 17. Qxc6 {[%clk 0:02:24]}  Rc8 {[%clk 0:02:20]} 18. Qb5 {[%clk 0:02:22]}  Nc4 {[%clk 0:02:05]} 19. b3 {[%clk 0:01:57]}  Na3 {[%clk 0:02:05]} 20. Qd3 {[%clk 0:01:57]}  Nf4 {[%clk 0:02:00]} 21. Qd2 {[%clk 0:01:51]}  Nd5 {[%clk 0:01:57]} 22. Nc5 {[%clk 0:01:43]}  Nc3 {[%clk 0:01:46]} 23. Qb2 {[%clk 0:01:13]}  Qd5 {[%clk 0:01:44]} 24. Rxa3 {[%clk 0:01:08]}  bxa3 {[%clk 0:01:25]} 25. Qxc3 {[%clk 0:01:08]}  f6 {[%clk 0:01:22]} 26. exf6 {[%clk 0:01:04]}  Rxf6 {[%clk 0:01:22]} 27. Ra1 {[%clk 0:00:51]}  Rcf8 {[%clk 0:01:13]} 28. Qc4 {[%clk 0:00:46]}  Qh5 {[%clk 0:01:06]} 29. Nxe6 {[%clk 0:00:44]}  R8f7 {[%clk 0:00:55]} 30. Nd8 {[%clk 0:00:25]}  Kh7 {[%clk 0:00:43]} 31. Nxf7 {[%clk 0:00:24]}  Rxf7 {[%clk 0:00:44]} 32. Qd3+ {[%clk 0:00:23]}  Kh8 {[%clk 0:00:42]} 33. Rxa3 {[%clk 0:00:22]}  Qg4 {[%clk 0:00:41]} 34. Ra1 {[%clk 0:00:20]}  Re7 {[%clk 0:00:39]} 35. Re1 {[%clk 0:00:19]}  Rc7 {[%clk 0:00:37]} 36. Re8# {[%clk 0:00:19]} 1-0


[Site "https://www.chess.com"]

[Event "Titled Tuesday Blitz February 07 Late 2023"]
[White "Prieto Aranguren, Alain"]
[Black "Preotu, Razvan"]
[WhiteFideId "2268906"]
[BlackFideId "2613280"]
[WhiteElo "2258"]
[BlackElo "2475"]
[Result "0-1"]
[Round "02"]
[TimeControl "180+2"]
[Date "2023.02.07"]
[WhiteClock "0:02:11"]
[BlackClock "0:01:38"]

1. d4 {[%clk 0:03:00]}  Nf6 {[%clk 0:02:51]} 2. c4 {[%clk 0:02:58]}  g6 {[%clk 0:02:51]} 3. Nc3 {[%clk 0:02:58]}  d5 {[%clk 0:02:52]} 4. Nf3 {[%clk 0:02:56]}  Bg7 {[%clk 0:02:52]} 5. Qb3 {[%clk 0:02:56]}  dxc4 {[%clk 0:02:51]} 6. Qxc4 {[%clk 0:02:56]}  O-O {[%clk 0:02:51]} 7. e4 {[%clk 0:02:56]}  a6 {[%clk 0:02:52]} 8. e5 {[%clk 0:02:53]}  b5 {[%clk 0:02:52]} 9. Qb3 {[%clk 0:02:53]}  Nfd7 {[%clk 0:02:52]} 10. e6 {[%clk 0:02:53]}  fxe6 {[%clk 0:02:51]} 11. Be3 {[%clk 0:02:52]}  Nf6 {[%clk 0:02:48]} 12. a4 {[%clk 0:02:51]}  b4 {[%clk 0:02:47]} 13. Qxb4 {[%clk 0:02:52]}  Nc6 {[%clk 0:02:42]} 14. Qa3 {[%clk 0:02:52]}  Rb8 {[%clk 0:02:27]} 15. Bc4 {[%clk 0:02:51]}  Qd6 {[%clk 0:02:15]} 16. O-O {[%clk 0:02:50]}  Ng4 {[%clk 0:02:10]} 17. Ne4 {[%clk 0:02:39]}  Qxa3 {[%clk 0:02:07]} 18. bxa3 {[%clk 0:02:31]}  Nxe3 {[%clk 0:02:06]} 19. fxe3 {[%clk 0:02:30]}  Bh6 {[%clk 0:02:06]} 20. Neg5 {[%clk 0:02:27]}  Nd8 {[%clk 0:01:52]} 21. Rab1 {[%clk 0:02:19]}  Rxb1 {[%clk 0:01:37]} 22. Rxb1 {[%clk 0:02:16]}  Bb7 {[%clk 0:01:38]} 23. Kf2 {[%clk 0:02:11]}  Bxg5 {[%clk 0:01:38]} 0-1


[Site "https://www.chess.com"]